bitfinex/quotes_ETHUSD_20260113
["timestamp","ask_amount","ask_price","bid_price","bid_amount"]
[1768308639146,0.001,3133.4,3133.2,1.37578649]
[1768308639720,0.001,3133.4,3133.2,0.41523462]
[1768308642309,0.001,3133.4,3133.2,1.37578649]
[1768308643346,0.001,3133.4,3133.2,0.41523462]
[1768308643655,0.001,3133.4,3133.0,4.15233744]
[1768308649344,0.001,3133.4,3133.1,0.96055187]
[1768308651758,0.001,3133.4,3133.0,3.19178557]
[1768308653357,0.001,3133.4,3133.1,3.19172177]
[1768308653560,0.001,3133.4,3133.0,4.15238078]
[1768308660347,0.001,3133.4,3132.9,3.19187889]
[1768308660538,0.001,3133.4,3133.0,3.1918111]
[1768308663369,0.001,3133.4,3132.9,3.19187691]
[1768308668248,0.001,3133.4,3133.2,0.002]
[1768308687281,0.001,3133.4,3133.2,0.93109287]
[1768308687987,0.001,3133.4,3133.2,0.002]
[1768308691696,6.38412089,3133.8,3133.3,4.89155834]
[1768308691697,0.90380965,3133.8,3133.3,4.89155834]
[1768308691887,0.002,3133.8,3133.4,4.89155834]
[1768308692201,0.002,3133.8,3132.0,0.002]
[1768308692202,0.90180965,3132.9,3132.0,0.002]
[1768308692381,0.251,3132.9,3132.4,4.89155834]
[1768308692586,0.90180965,3133.2,3132.6,4.89155834]
[1768308692786,1.15280965,3133.2,3132.6,4.89155834]
[1768308693098,0.90180965,3133.1,3132.6,4.89155834]
[1768308693298,0.90180965,3133.1,3132.4,5.85257561]
[1768308693525,0.90180965,3133.3,3132.6,4.89155834]
[1768308693706,4.09343223,3133.3,3132.6,4.89155834]
[1768308693877,0.251,3133.2,3132.6,4.89155834]
[1768308694205,1.15280965,3133.2,3132.6,4.89155834]
[1768308695405,1.15280965,3133.2,3132.5,3.19233623]
[1768308695798,4.34444777,3133.2,3132.5,3.19233623]
[1768308696408,4.34444777,3133.2,3132.5,3.22425961]
[1768308696706,4.34444777,3133.2,3132.5,3.19233623]
[1768308697610,4.09344777,3133.2,3132.5,3.19233623]
[1768308698680,0.93927465,3133.1,3132.5,3.19233623]
[1768308699805,0.93927465,3133.1,3132.3,3.19245779]
[1768308699806,0.93927465,3133.0,3132.3,3.19245779]
[1768308701801,0.93927465,3133.0,3132.2,6.38526559]
[1768308703482,0.93927465,3133.0,3132.2,7.28537089]
[1768308703682,0.001,3132.9,3132.2,7.28537089]
[1768308705209,0.001,3132.9,3132.3,0.251]
[1768308709086,0.001,3132.9,3132.4,3.1924403]
[1768308714423,0.93927465,3132.4,3131.7,3.19310018]
[1768308714604,1.52235795,3132.3,3131.6,3.4462022]
[1768308714806,0.93927465,3132.2,3131.6,0.002]
[1768308715212,0.93927465,3132.0,3131.6,0.002]
[1768308715723,1.52235795,3131.9,3131.6,0.002]
[1768308718194,4.71537057,3131.9,3131.6,0.002]
[1768308718828,4.71537057,3131.9,3131.2,0.30692184]
[1768308719017,4.71537057,3131.9,3130.8,0.16239318]
[1768308719018,5.83083299,3131.5,3130.8,0.16239318]
[1768308719215,0.93927465,3131.5,3130.8,1.31349848]
[1768308719419,0.93927465,3131.5,3130.8,1.1511053]
[1768308719895,0.93927465,3131.8,3131.1,3.19375047]
[1768308720098,3.77609592,3131.9,3131.1,0.9001053]
[1768308720099,6.96910854,3131.9,3131.1,0.9001053]
[1768308720329,0.93927465,3131.8,3130.8,5.14255834]
[1768308720530,0.93927465,3131.8,3130.9,0.9001053]
[1768308722217,3.19315387,3131.7,3131.0,4.89155834]
[1768308722422,3.19315387,3131.7,3131.1,0.9001053]
[1768308724933,3.77603649,3131.9,3131.2,5.80830098]
[1768308725131,3.77603649,3131.9,3131.3,0.251]
[1768308725932,6.96898968,3131.9,3131.3,0.251]
[1768308727809,6.96898968,3131.9,3131.4,0.002]
[1768308729434,3.77603649,3131.9,3131.4,0.002]
[1768308730136,3.80795289,3131.9,3131.4,0.002]
[1768308730439,7.00090608,3131.9,3131.4,0.002]
[1768308730635,6.96898968,3131.9,3131.4,0.002]
[1768308732136,7.87628645,3131.9,3131.4,0.002]
[1768308732827,0.78762865,3131.8,3131.4,0.002]
[1768308735534,3.9807651,3131.8,3131.4,0.002]
[1768308736323,7.17390155,3131.8,3131.4,0.002]
[1768308736932,3.9807651,3131.8,3131.4,0.002]
[1768308738115,7.17390155,3131.8,3131.4,0.002]
[1768308738920,8.12144912,3131.8,3131.4,0.002]
[1768308739708,0.001,3131.6,3131.4,0.002]
[1768308748875,0.94754757,3132.2,3131.4,10.70685984]
[1768308749186,4.14023974,3132.2,3131.7,4.89155834]
[1768308749327,4.14023974,3132.2,3131.8,0.251]
[1768308749638,0.94754757,3132.1,3131.8,0.251]
[1768308750566,3.19245074,3132.4,3131.8,0.251]
[1768308750567,0.94754757,3132.4,3132.0,4.89531201]
[1768308750722,0.94854757,3132.6,3132.0,4.89531201]
[1768308750923,4.14082103,3132.6,3132.0,4.89531201]
[1768308751274,0.94854757,3132.6,3132.0,4.89531201]
[1768308751468,0.94854757,3132.6,3132.1,0.42021949]
[1768308751969,4.14078905,3132.6,3132.1,0.42021949]
[1768308752481,0.94854757,3132.6,3132.1,0.42021949]
[1768308756076,4.14078633,3132.6,3132.1,0.42021949]
[1768308762855,0.001,3132.3,3132.1,0.42021949]
[1768308763056,0.92366554,3132.5,3132.1,0.42021949]
[1768308763255,3.19323876,3132.6,3132.1,0.42021949]
[1768308768614,0.92466554,3132.6,3132.1,0.42021949]
[1768308769869,0.92466554,3132.6,3132.2,0.34442403]
[1768308770067,0.92466554,3132.6,3132.3,0.251]
[1768308770573,3.19233838,3132.5,3132.3,0.251]
[1768308771070,4.11600392,3132.5,3132.3,0.251]
[1768308771286,3.19233838,3132.5,3132.3,0.251]
[1768308771486,3.19328789,3132.6,3132.3,0.251]
[1768308772698,0.001,3132.6,3132.3,0.251]
[1768308775284,0.001,3132.6,3131.9,4.10424204]
[1768308775486,0.001,3132.6,3132.0,0.6614242]
[1768308776896,0.92466554,3132.6,3132.0,0.4104242]
[1768308777104,0.92466554,3132.6,3132.1,0.251]
[1768308778399,4.11699063,3132.6,3132.1,0.251]
[1768308779103,4.11699063,3132.6,3132.2,0.251]
[1768308782781,0.95558194,3132.5,3131.6,3.1932007]
[1768308782977,0.95558194,3132.5,3131.7,0.251]
[1768308783177,0.92366554,3132.4,3131.7,0.251]
[1768308783374,0.92366554,3132.4,3131.6,4.10454529]
[1768308783585,0.92366554,3132.4,3131.8,0.251]
[1768308784208,0.92366554,3132.4,3131.8,3.44405053]
[1768308785499,4.11612326,3132.4,3131.8,0.251]
[1768308786585,4.11612326,3132.4,3132.1,0.002]
[1768308786781,0.001,3132.3,3132.1,0.002]
[1768308788481,0.92100947,3132.3,3132.1,0.002]
[1768308789610,0.92100947,3132.3,3132.2,0.251]
[1768308789915,0.92100947,3132.3,3132.1,0.002]
[1768308789916,0.92000947,3132.2,3132.1,0.002]
[1768308790105,0.92000947,3132.2,3132.1,0.253]
[1768308801691,0.001,3132.3,3132.1,0.253]
[1768308804225,0.96124685,3132.3,3132.1,0.253]
[1768308805526,0.001,3132.3,3132.1,0.253]
[1768308808113,0.001,3132.3,3132.2,0.251]
[1768308811534,0.96124685,3132.3,3132.2,0.251]
[1768308812311,0.001,3132.3,3132.2,0.251]
[1768308816746,4.1128449,3132.5,3132.2,0.251]
[1768308817060,3.19242419,3132.5,3132.2,0.251]
[1768308819359,6.38484838,3132.5,3132.2,0.251]
[1768308819539,3.19242419,3132.5,3132.2,0.251]
[1768308819940,4.11367313,3132.6,3132.2,0.251]
[1768308820142,4.14558953,3132.6,3132.2,0.251]
[1768308820552,0.0329164,3132.6,3132.3,0.91656883]
[1768308820753,0.0329164,3132.6,3132.2,0.251]
[1768308820754,0.001,3132.6,3132.2,0.251]
[1768308821245,0.001,3132.6,3132.3,0.91656883]
[1768308823743,0.001,3132.6,3132.2,3.4436308]
[1768308823949,0.00081654,3132.8,3132.5,3.19233838]
[1768308824249,0.001,3132.9,3132.6,4.89539185]
[1768308824468,4.89539185,3134.4,3133.2,4.89539185]
[1768308824469,0.92242071,3133.8,3133.2,4.89539185]
[1768308824641,3.19306167,3133.8,3133.3,0.251]
[1768308825364,8.0349805,3133.8,3133.3,0.251]
[1768308825943,0.0319164,3133.7,3133.3,0.251]
[1768308826140,3.19121776,3133.6,3133.3,0.251]
[1768308826339,3.19116288,3133.7,3133.3,0.251]
[1768308826729,3.92349456,3133.8,3133.3,0.251]
[1768308827972,7.11455267,3133.8,3133.3,0.251]
[1768308828262,12.00994452,3133.8,3133.3,0.251]
[1768308829065,12.93036523,3133.8,3133.3,0.251]
[1768308829428,1.32495292,3133.7,3133.3,0.18220452]
[1768308829833,0.92042071,3133.6,3133.3,0.18220452]
[1768308830043,1.32495292,3133.7,3133.3,0.18220452]
[1768308830664,3.19121776,3133.6,3133.3,0.18220452]
[1768308833175,0.001,3133.5,3133.3,0.18220452]
[1768308833576,3.19237244,3133.5,3133.3,0.18220452]
[1768308835669,0.001,3133.5,3132.9,0.91656883]
[1768308835968,0.001,3133.5,3133.0,0.251]
[1768308836847,0.92142071,3133.5,3132.7,4.10866995]
[1768308837174,0.95233711,3133.4,3132.8,0.251]
[1768308837344,2.17545356,3133.4,3132.9,0.251]
[1768308838140,5.36697076,3133.4,3132.9,0.251]
[1768308838551,0.92042071,3133.3,3132.9,0.251]
[1768308838751,4.44655005,3133.4,3132.9,0.251]
[1768308839172,8.55848796,3133.4,3133.0,0.251]
[1768308839382,0.92042071,3133.2,3132.5,0.91656883]
[1768308839682,0.92042071,3133.2,3132.4,3.19240127]
[1768308839683,5.81581256,3132.9,3132.1,0.91856883]
[1768308839843,0.92042071,3132.8,3132.1,0.002]
[1768308840053,0.92042071,3132.8,3132.2,0.251]
[1768308840282,4.11255529,3132.7,3132.2,0.251]
[1768308840486,3.19207835,3132.8,3132.2,0.251]
[1768308841187,4.11249906,3132.8,3132.3,0.251]
[1768308843892,0.92042071,3132.8,3132.3,0.251]
[1768308844101,4.11246601,3132.8,3132.3,0.251]
[1768308844993,4.11246601,3132.8,3132.6,0.001]
[1768308845290,4.84290254,3132.8,3132.6,0.001]
[1768308849490,3.92248183,3132.8,3132.6,0.001]
[1768308855294,3.95439823,3132.8,3132.6,0.001]
[1768308857295,0.92737793,3132.7,3132.6,0.001]
[1768308859177,4.11951251,3132.7,3132.6,0.001]
[1768308859697,3.19213458,3132.7,3132.6,0.001]
[1768308860466,4.11951251,3132.7,3132.6,0.001]
[1768308860671,3.19213458,3132.7,3132.6,0.001]
[1768308861207,0.92737793,3132.6,3132.3,0.251]
[1768308861411,0.92737793,3132.6,3132.3,3.44352296]
[1768308861784,0.51961014,3132.6,3132.3,3.44352296]
[1768308861992,3.19193195,3132.9,3132.3,3.44352296]
[1768308862206,0.92737793,3132.8,3132.6,0.02759772]
[1768308863282,3.19176596,3133.1,3132.6,0.02759772]
[1768308866781,0.92737793,3133.0,3132.6,0.02759772]
[1768308867898,0.92737793,3132.9,3132.6,0.02759772]
[1768308868208,0.92737793,3132.9,3132.7,0.251]
[1768308868791,3.19303268,3132.8,3132.7,0.251]
[1768308869713,0.001,3132.8,3132.7,0.251]
[1768308870493,0.001,3132.8,3132.6,0.27859772]
[1768308870794,0.92837793,3132.8,3132.5,0.251]
[1768308870994,3.19213458,3132.7,3132.5,0.251]
[1768308872424,4.12044129,3132.8,3132.5,0.251]
[1768308873287,0.001,3132.8,3132.5,0.251]
[1768308873617,0.001,3132.8,3132.6,0.90634744]
[1768308879324,0.001,3132.8,3132.6,3.19220739]
[1768308879524,3.19163441,3133.2,3132.6,1.37711343]
[1768308879731,3.19163441,3133.2,3132.6,0.94214698]
[1768308880028,3.19163441,3133.2,3132.5,3.47521303]
[1768308880725,3.19163441,3133.2,3132.5,4.38543663]
[1768308882128,4.13531826,3133.2,3132.5,4.38543663]
[1768308882495,4.13531826,3133.2,3132.5,1.19314698]
[1768308882728,4.13531826,3133.2,3132.5,0.251]
[1768308885832,7.32695267,3133.2,3132.5,0.251]
[1768308886132,0.94368385,3133.1,3132.5,0.251]
[1768308887106,4.135504,3133.1,3132.3,0.94214698]
[1768308887306,0.97560025,3133.0,3132.4,0.251]
[1768308889334,0.94368385,3132.8,3132.1,0.002]
[1768308889525,0.97560025,3132.8,3132.2,0.251]
[1768308889726,0.97560025,3132.8,3132.1,0.002]
[1768308890035,0.97560025,3132.8,3132.1,0.253]
[1768308890236,0.97560025,3132.8,3132.1,3.44570629]
[1768308891036,0.94368385,3132.8,3132.1,3.44570629]
[1768308891737,4.16767513,3132.8,3132.1,3.44570629]
[1768308892138,0.94368385,3132.8,3132.1,3.44570629]
[1768308892441,0.001,3132.7,3132.1,3.44570629]
[1768308892802,0.001,3132.7,3132.1,6.63845237]
[1768308894010,0.001,3132.7,3132.1,6.38745237]
[1768308894211,0.001,3132.7,3132.1,6.63845237]
[1768308895639,0.001,3132.7,3132.2,0.94214698]
[1768308896205,0.001,3132.7,3132.3,3.19254222]
[1768308897323,0.94468385,3132.7,3132.2,3.19258869]
[1768308898244,0.001,3132.7,3132.2,3.19258869]
[1768308899117,0.001,3132.7,3132.2,3.19261954]
[1768308901516,0.001,3132.7,3132.1,4.38786155]
[1768308901840,0.97660025,3132.7,3132.1,0.253]
[1768308902148,0.94468385,3132.7,3132.1,0.253]
[1768308903659,0.94368385,3132.5,3132.1,0.002]
[1768308903949,0.94368385,3132.3,3132.1,0.002]
[1768308904149,0.94368385,3132.3,3131.8,0.002]
[1768308904443,0.94368385,3132.3,3132.0,0.002]
[1768308904942,0.94368385,3132.3,3131.8,0.002]
[1768308906545,0.93919133,3132.1,3131.8,0.002]
[1768308906847,1.67163929,3132.1,3131.8,0.002]
[1768308907536,0.73244796,3132.1,3131.8,0.002]
[1768308907741,3.19264414,3132.2,3131.8,0.99469992]
[1768308908424,3.22447528,3132.3,3131.8,0.99469992]
[1768308908619,3.64119293,3132.4,3131.8,0.99469992]
[1768308910769,6.83368579,3132.4,3131.8,0.99469992]
[1768308910973,0.68336858,3132.3,3131.8,0.99469992]
[1768308911154,0.71528498,3132.3,3131.8,0.99469992]
[1768308913336,3.19264414,3132.2,3131.8,0.99469992]
[1768308913652,6.38528828,3132.2,3131.8,0.002]
[1768308913833,3.19264414,3132.2,3131.8,0.002]
[1768308914034,4.03509891,3132.2,3131.8,0.002]
[1768308917365,8.19872645,3132.2,3131.8,0.002]
[1768308918779,5.00608231,3132.2,3131.8,0.002]
[1768308921375,4.03509891,3132.2,3131.8,0.002]
[1768308922265,0.84245477,3132.2,3131.8,0.92405993]
[1768308922460,3.60927323,3132.4,3131.8,0.92405993]
[1768308922669,6.80176279,3132.4,3131.8,0.92405993]
[1768308922981,3.60927323,3132.4,3131.8,0.92405993]
[1768308923136,3.19248956,3132.4,3131.8,0.92405993]
[1768308923482,3.19237481,3132.5,3131.8,0.92405993]
[1768308925086,3.19237481,3132.5,3131.8,4.11710721]
[1768308925267,3.19317284,3132.7,3131.9,0.92205993]
[1768308925457,3.22508924,3132.7,3131.9,0.92205993]
[1768308925642,0.9709834,3132.6,3131.8,3.19504728]
[1768308925842,3.22508924,3132.7,3131.9,0.92205993]
[1768308926304,4.19607264,3132.7,3131.9,0.92205993]
[1768308926480,0.001,3132.7,3132.1,0.92205993]
[1768308926976,0.001,3132.7,3132.2,0.92205993]
[1768308927566,0.001,3132.3,3132.2,0.92205993]
[1768308927770,0.001,3132.7,3132.2,0.92205993]
[1768308928782,0.001,3132.7,3132.2,4.1146589]
[1768308928980,0.253,3133.3,3132.4,4.89446277]
[1768308929182,0.9709834,3133.2,3132.4,4.89446277]
[1768308929871,0.9709834,3133.2,3132.4,5.8165227]
[1768308930286,0.9709834,3133.2,3132.5,0.92205993]
[1768308930652,3.44456902,3133.3,3132.6,0.92205993]
[1768308931488,3.44456902,3133.3,3132.7,0.92205993]
[1768308932188,0.0319164,3133.2,3132.5,0.92205993]
[1768308932993,3.19172704,3133.1,3132.5,0.92205993]
[1768308933997,4.16271044,3133.1,3132.4,0.251]
[1768308934561,4.16271044,3133.1,3132.4,1.17305993]
[1768308935407,0.97731248,3132.9,3132.2,0.9884766]
[1768308935558,0.97731248,3132.7,3131.8,0.002]
[1768308935761,4.92404692,3132.8,3131.8,0.002]
[1768308935762,0.97731248,3132.5,3131.8,0.002]
[1768308936193,5.869443,3132.4,3131.8,0.002]
[1768308936391,0.97731248,3132.1,3131.8,0.002]
[1768308937981,3.19284802,3132.0,3131.8,0.002]
[1768308938196,6.38569604,3132.0,3131.8,0.002]
[1768308938392,3.19284802,3132.0,3131.8,0.002]
[1768308941102,0.001,3132.1,3131.8,0.002]
[1768308944508,0.001,3132.1,3131.8,5.88260712]
[1768308944807,0.001,3132.1,3131.8,4.89413052]
[1768308946412,0.001,3132.1,3131.8,5.88260712]
[1768308948711,0.97731248,3132.5,3132.0,4.89213052]
[1768308948910,7.40731248,3132.7,3132.0,4.89213052]
[1768308949810,3.19232431,3132.6,3132.0,5.88060712]
[1768308950511,3.19232431,3132.6,3132.0,0.9884766]
[1768308951206,3.19232431,3132.6,3132.1,0.002]
[1768308952521,0.97731248,3132.5,3132.1,0.002]
[1768308952729,0.97731248,3132.2,3131.8,0.002]
[1768308952910,4.17005856,3132.1,3131.8,0.002]
[1768308953306,0.97731248,3132.1,3131.8,0.002]
[1768308955500,4.17007561,3132.1,3131.4,4.1839258]
[1768308955699,0.97731248,3132.0,3131.4,0.002]
[1768308956337,0.97731248,3132.0,3131.4,3.19544729]
[1768308956628,0.97731248,3132.0,3131.4,0.002]
[1768308957326,0.97731248,3131.9,3131.4,0.002]
[1768308957909,3.19278424,3132.1,3131.4,0.002]
[1768308958227,3.19278424,3132.1,3131.4,0.9904766]
[1768308958733,3.19264414,3132.2,3131.4,4.18393121]
[1768308958908,3.19264414,3132.2,3131.5,0.9884766]
[1768308960633,6.38528828,3132.2,3131.5,0.9884766]
[1768308960814,6.41720468,3132.2,3131.5,0.9884766]
[1768308961539,0.97731248,3132.1,3131.4,0.002]
[1768308961744,2.20597725,3132.1,3131.4,0.002]
[1768308961899,5.9013594,3132.0,3131.4,0.002]
[1768308962229,0.97731248,3132.0,3131.4,0.002]
[1768308962828,3.19294996,3131.9,3131.4,0.002]
[1768308964010,4.17020664,3132.0,3131.8,0.002]
[1768308964334,5.51857484,3132.0,3131.4,0.002]
[1768308964540,4.17020664,3132.0,3131.5,0.002]
[1768308964724,3.19289416,3132.0,3131.5,0.91152697]
[1768308965317,3.19374608,3132.1,3131.5,0.91152697]
[1768308967143,3.19374608,3132.1,3131.5,0.002]
[1768308967144,0.97300742,3132.0,3131.5,0.002]
[1768308967330,3.19374608,3132.1,3131.5,0.91152697]
[1768308968027,0.97300742,3132.0,3131.5,0.002]
[1768308968949,0.97300742,3131.9,3131.5,0.002]
[1768308969109,2.20136207,3131.9,3131.5,0.002]
[1768308969309,3.19305191,3131.8,3131.5,0.002]
[1768308969504,5.4262764,3131.9,3131.5,0.002]
[1768308969725,5.39436,3131.9,3131.5,0.002]
[1768308970157,0.0319164,3131.8,3131.5,0.002]
[1768308971808,4.42135049,3131.9,3131.5,0.002]
[1768308973422,8.61927015,3131.9,3131.5,0.002]
[1768308973740,1.35114007,3131.8,3131.5,0.002]
[1768308975238,1.38305647,3131.8,3131.5,0.002]
[1768308976558,3.19315387,3131.7,3131.5,0.002]
[1768308977113,4.89213052,3131.6,3131.2,0.00081695]
[1768308977313,2.08396937,3131.5,3131.2,0.00081695]
[1768308978543,3.19345979,3131.4,3131.0,0.002]
[1768308978851,3.19345979,3131.4,3131.0,0.00118305]
[1768308979042,1.12784383,3131.5,3131.0,0.91470696]
[1768308979043,4.32124699,3131.5,3131.0,0.91470696]
[1768308979241,1.35214007,3131.8,3131.0,0.91470696]
[1768308979546,1.35214007,3131.8,3131.3,0.91352391]
[1768308979547,0.001,3131.8,3131.3,0.91352391]
[1768308981655,0.95712554,3131.8,3131.1,0.251]
[1768308982026,5.84825606,3131.7,3131.0,0.91470696]
[1768308982227,0.95612554,3131.7,3131.0,0.91470696]
[1768308983054,3.19325584,3131.6,3131.0,0.91470696]
[1768308983754,0.001,3131.8,3131.1,0.91352391]
[1768308984051,0.001,3131.8,3131.3,0.91352391]
[1768308984458,3.19407245,3131.8,3131.3,0.91352391]
[1768308985336,0.001,3131.8,3131.3,0.91352391]
[1768308987755,4.89213052,3131.7,3131.0,0.00118305]
[1768308987943,0.001,3131.5,3131.0,0.00118305]
[1768308988760,0.001,3131.5,3131.0,4.1085723]
[1768308989446,0.001,3131.5,3131.0,0.91470696]
[1768308989861,0.001,3131.5,3131.0,4.10851589]
[1768308990065,0.001,3131.5,3131.1,0.91352391]
[1768308995652,0.001,3131.5,3131.0,0.00118305]
[1768308996390,0.001,3131.5,3131.0,0.93225826]
[1768308999082,0.001,3131.5,3131.1,0.93107521]
[1768308999461,0.001,3131.5,3131.2,0.93107521]
[1768309003184,0.001,3131.5,3131.1,0.93107521]
[1768309005889,0.001,3131.5,3131.2,0.93107521]
[1768309020900,0.001,3131.5,3131.3,0.93107521]
[1768309021399,0.94875515,3131.8,3131.1,3.19371382]
[1768309021604,0.94875515,3131.8,3131.2,0.31948969]
[1768309022507,0.94875515,3131.8,3131.0,0.25218305]
[1768309022808,4.89761903,3131.6,3131.0,0.00118305]
[1768309023103,0.94875216,3131.5,3131.0,0.00118305]
[1768309024381,3.19315387,3131.7,3131.0,0.93225826]
[1768309024591,2.99e-06,3131.8,3131.1,4.12481545]
[1768309024909,2.99e-06,3131.8,3131.2,1.34367506]
[1768309026706,2.99e-06,3131.8,3131.2,0.41259985]
[1768309027595,2.99e-06,3131.8,3131.0,0.9901109]
[1768309027596,0.98758903,3131.8,3131.0,0.9901109]
[1768309029134,7.37389378,3131.7,3131.0,0.9901109]
[1768309030428,0.98758604,3131.6,3131.0,0.25218305]
[1768309030602,0.98758604,3131.6,3131.0,0.00118305]
[1768309031117,3.19335781,3131.5,3131.0,0.00118305]
[1768309031286,3.19335781,3131.5,3131.0,0.34600343]
[1768309031287,4.18094385,3131.5,3131.0,0.34600343]
[1768309032401,4.18094385,3131.5,3131.0,0.00118305]
[1768309034292,4.18194385,3131.5,3131.0,0.00118305]
[1768309034725,0.98758604,3131.4,3131.0,0.00118305]
[1768309036089,4.18106965,3131.4,3131.0,0.00118305]
[1768309037124,0.98758604,3131.4,3131.0,0.00118305]
[1768309037323,0.98758604,3131.4,3131.0,0.34600748]
[1768309037525,4.18106411,3131.4,3131.0,0.34600748]
[1768309037915,4.18106411,3131.4,3131.0,0.00118305]
[1768309038729,0.98758604,3131.4,3131.0,0.00118305]
[1768309039998,3.19441026,3131.5,3131.0,0.00118305]
[1768309043728,3.19441026,3131.5,3131.0,0.9967198]
[1768309043729,0.001,3131.5,3131.0,0.9967198]
[1768309046008,2e-06,3131.5,3131.0,0.9967198]
[1768309046215,2e-06,3131.5,3131.2,0.99553675]
[1768309046578,2e-06,3131.5,3131.0,0.9967198]
[1768309046903,2e-06,3131.5,3131.0,0.00118305]
[1768309047435,2e-06,3131.5,3131.0,1.2477198]
[1768309048643,2e-06,3131.5,3131.1,0.99553675]
[1768309050535,2e-06,3131.5,3131.2,0.99553675]
[1768309067260,2e-06,3131.5,3131.1,3.44472337]
[1768309068055,2e-06,3131.5,3131.1,4.35514437]
[1768309070060,2e-06,3131.5,3131.2,0.910421]
[1768309071147,2e-06,3131.5,3131.1,8.34359328]
[1768309071346,2e-06,3131.5,3131.1,9.25401428]
[1768309071854,2e-06,3131.5,3131.1,4.35714437]
[1768309074388,2e-06,3131.5,3131.2,0.910421]
[1768309076339,2e-06,3131.5,3131.2,4.10401787]
[1768309079066,2e-06,3131.5,3131.3,0.910421]
[1768309079270,2e-06,3131.5,3131.4,0.41040179]
[1768309082265,2e-06,3131.5,3131.4,0.41240179]
[1768309085513,2.99e-06,3131.8,3131.6,4.89686991]
[1768309085673,2.99e-06,3131.8,3131.5,0.99369188]
[1768309087911,2.99e-06,3131.8,3131.5,4.18700057]
[1768309088067,2.99e-06,3131.8,3131.7,0.99369188]
[1768309092564,2.99e-06,3131.8,3131.6,0.35424173]
[1768309092770,0.7648625,3132.1,3131.6,0.35424173]
[1768309092973,0.92469864,3131.7,3131.4,0.002]
[1768309094200,0.001,3131.5,3131.4,0.002]
[1768309095176,0.92469864,3131.7,3131.4,0.002]
[1768309095372,4.89686991,3132.6,3131.5,4.89686991]
[1768309095599,0.90587025,3132.4,3131.5,4.89686991]
[1768309096280,0.90587025,3132.4,3131.5,5.84430941]
[1768309096475,0.90587025,3132.4,3131.5,0.9474395]
[1768309098102,7.29095469,3132.3,3131.5,0.9474395]
[1768309098411,7.29095469,3132.3,3131.5,4.14078201]
[1768309098576,7.29095469,3132.3,3131.6,0.4142782]
[1768309098971,7.29095469,3132.3,3131.6,1.3617177]
[1768309101895,0.90587025,3132.2,3131.4,4.14285244]
[1768309102084,0.90587025,3132.2,3131.4,0.002]
[1768309102601,5.80274016,3132.2,3131.4,0.002]
[1768309102914,0.90587025,3132.1,3131.4,0.002]
[1768309103334,0.90587025,3132.1,3131.4,3.19545943]
[1768309103526,0.90587025,3132.1,3131.5,3.51290185]
[1768309103924,4.09861789,3132.1,3131.5,3.51290185]
[1768309104133,0.90587025,3132.1,3131.5,3.51290185]
[1768309104431,3.19268651,3132.2,3131.5,4.46034135]
[1768309104944,4.09845085,3132.3,3131.5,4.46034135]
[1768309105145,0.90587025,3132.9,3132.1,5.84430941]
[1768309105327,0.90587025,3132.7,3132.0,0.251]
[1768309106435,7.29034321,3132.6,3131.7,4.89886991]
[1768309106624,7.29034321,3132.6,3131.7,0.98137103]
[1768309106625,0.90587025,3132.5,3131.7,0.98137103]
[1768309106926,0.90587025,3132.5,3131.8,0.251]
[1768309107121,0.90587025,3132.5,3131.8,3.443999]
[1768309107298,0.90587025,3132.5,3131.9,0.442537]
[1768309107503,0.90587025,3132.5,3131.9,3.63547691]
[1768309107903,4.0980538,3132.7,3131.9,4.58291641]
[1768309108130,4.0980538,3132.7,3132.0,0.9474395]
[1768309108451,3.19218355,3132.7,3132.0,0.9474395]
[1768309108624,3.19203268,3132.8,3132.1,4.46226587]
[1768309109543,7.28993561,3132.8,3132.1,1.26954602]
[1768309110847,7.28993561,3132.8,3132.1,0.32210652]
[1768309111722,0.90587025,3132.7,3132.1,0.32210652]
[1768309113045,3.19223648,3132.6,3132.1,0.32210652]
[1768309113615,0.90587025,3132.7,3132.1,0.32210652]
[1768309113616,4.098052,3132.7,3132.1,0.32210652]
[1768309113845,3.19218175,3132.7,3132.2,0.442537]
[1768309114023,3.19218175,3132.7,3132.2,1.3899765]
[1768309114448,3.19207465,3132.8,3132.2,1.3899765]
[1768309115618,6.3841493,3132.8,3132.2,1.3899765]
[1768309115954,6.3841493,3132.8,3132.2,0.442537]
[1768309116156,7.28484773,3132.8,3132.0,0.9248493]
[1768309116330,7.28484773,3132.8,3132.0,4.11767834]
[1768309118533,0.001,3132.4,3132.0,4.11767834]
[1768309118739,0.001,3132.4,3132.1,0.9248493]
[1768309119048,3.44275091,3133.1,3132.4,0.9248493]
[1768309119049,3.19088891,3133.1,3132.4,0.9248493]
[1768309119656,6.41453235,3133.1,3132.4,0.9248493]
[1768309120021,0.85725124,3133.0,3132.2,0.9248493]
[1768309120222,0.85725124,3133.0,3132.3,1.33660742]
[1768309121857,3.19193079,3132.9,3132.3,1.33660742]
[1768309127334,3.19193079,3132.9,3132.3,0.41175812]
[1768309129369,3.19193079,3132.9,3132.3,3.60429836]
[1768309130068,0.85725124,3133.1,3132.4,0.9248493]
[1768309130366,0.85725124,3133.1,3132.5,0.3528854]
[1768309130866,0.001,3132.6,3132.5,0.3528854]
[1768309131165,3.19182891,3133.0,3132.5,0.3528854]
[1768309133965,0.85725124,3132.9,3132.2,1.1758493]
[1768309135270,0.85725124,3132.9,3132.2,4.36848993]
[1768309135470,3.19203268,3132.8,3132.2,4.36848993]
[1768309136752,3.19203268,3132.8,3132.2,1.1758493]
[1768309136958,3.19203268,3132.8,3132.3,0.43685151]
[1768309137666,3.19193079,3132.9,3132.3,0.43685151]
[1768309137972,4.04918203,3132.9,3132.3,0.43685151]
[1768309139573,0.85725124,3132.6,3131.7,0.9268493]
[1768309139754,7.241928,3132.5,3131.7,0.9268493]
[1768309139960,0.85725124,3132.4,3131.7,0.9268493]
[1768309140335,0.85725124,3132.4,3131.7,0.002]
[1768309142256,3.19254222,3132.3,3131.7,0.002]
[1768309143290,3.19254222,3132.3,3132.0,0.002]
[1768309145693,6.38508444,3132.3,3132.0,0.002]
[1768309148007,3.19254222,3132.3,3132.0,0.002]
[1768309148193,0.001,3132.7,3132.3,0.90910442]
[1768309148407,0.001,3132.7,3132.5,0.90910442]